bitfinex/quotes_SOLUSD_20250815
["timestamp","ask_amount","ask_price","bid_price","bid_amount"]
[1755284589808,10.08004872,184.08,184.07,42.28]
[1755284590002,15.5124694,184.08,184.07,42.28]
[1755284590207,19.09658894,184.08,184.07,42.28]
[1755284590407,9.70654022,184.08,184.07,42.28]
[1755284590913,19.09658894,184.08,184.07,42.28]
[1755284591394,19.10526656,184.08,184.07,42.28]
[1755284591590,9.71521784,184.08,184.07,42.28]
[1755284591793,45.10526656,184.08,184.01,79.23]
[1755284592114,5.43419193,184.02,184.01,0.03]
[1755284592315,5.43419193,184.02,184.01,42.31]
[1755284592516,5.43396267,184.03,184.01,42.31]
[1755284592898,3.59279716,184.02,184.01,42.31]
[1755284593294,5.43396267,184.03,184.01,42.31]
[1755284593489,19.10680855,184.03,184.01,42.31]
[1755284593691,13.67284588,184.02,184.01,0.03]
[1755284593911,13.67284588,184.02,183.99,0.03]
[1755284594113,3.59279716,184.01,184.0,51.65004872]
[1755284594322,3.59279716,184.03,184.0,51.65004872]
[1755284594629,3.59279716,184.04,184.02,9.39004872]
[1755284594844,3.59279716,184.04,184.01,9.39004872]
[1755284595196,3.59279716,184.04,184.0,42.93]
[1755284595397,3.59279716,184.04,184.02,9.39004872]
[1755284595616,3.59279716,184.04,184.03,9.39004872]
[1755284595925,3.59279716,184.06,184.03,51.65004872]
[1755284596118,26.0,184.06,184.03,42.26]
[1755284596423,3.59279716,184.05,184.03,42.26]
[1755284596600,4.30279716,184.05,184.03,42.26]
[1755284596789,3.59279716,184.05,184.03,51.65004872]
[1755284597421,3.59279716,184.05,184.03,42.26]
[1755284597618,3.59279716,184.05,183.99,0.03]
[1755284597619,39.69284588,184.04,183.99,0.03]
[1755284597807,9.39004872,184.01,183.99,0.03]
[1755284598009,5.4347826,184.0,183.99,0.03]
[1755284598407,9.02757976,184.0,183.99,0.03]
[1755284598616,5.4347826,184.0,183.99,0.03]
[1755284598815,19.12762848,184.0,183.99,0.03]
[1755284599205,9.73757976,184.0,183.99,0.03]
[1755284599426,9.0273059,184.01,183.99,0.03]
[1755284599729,5.43450874,184.01,183.99,0.03]
[1755284599913,3.59279716,184.02,183.99,0.03]
[1755284600118,3.59279716,184.03,184.0,42.26]
[1755284600325,26.0,184.04,184.0,42.26]
[1755284600326,3.59279716,184.02,184.0,42.26]
[1755284600504,19.48458122,184.07,184.01,9.39004872]
[1755284600505,3.59279716,184.03,184.01,9.39004872]
[1755284600706,3.59279716,184.04,184.02,9.39004872]
[1755284600910,4.30279716,184.03,184.0,42.26]
[1755284601121,9.39004872,184.01,184.0,42.26]
[1755284601307,13.69284588,184.01,183.99,0.03]
[1755284601500,30.30279716,184.0,183.99,0.03]
[1755284601712,3.59279716,184.0,183.99,0.03]
[1755284602016,5.43448725,184.01,183.99,0.03]
[1755284602314,0.71,184.0,183.99,0.03]
[1755284602520,4.30279716,184.0,183.99,0.03]
[1755284603027,13.69284588,184.0,183.99,0.03]
[1755284603200,26.0,183.98,183.96,0.2]
[1755284603520,3.59279716,183.97,183.96,0.2]
[1755284603827,3.59279716,183.97,183.96,1e-08]
[1755284603828,13.69284588,183.97,183.96,1e-08]
[1755284604029,19.12851473,183.97,183.96,1e-08]
[1755284604528,9.73846601,183.97,183.96,1e-08]
[1755284604707,3.59279716,183.97,183.96,1e-08]
[1755284604913,26.0,183.99,183.96,9.39004873]
[1755284605096,3.57743097,183.98,183.96,1e-08]
[1755284605302,9.39004872,183.97,183.96,1e-08]
[1755284605517,4.28743097,183.97,183.96,1e-08]
[1755284606117,32.14566885,183.97,183.96,1e-08]
[1755284606424,3.57743097,183.97,183.96,1e-08]
[1755284606650,3.57743097,183.99,183.96,1e-08]
[1755284607066,9.01254703,183.99,183.96,1e-08]
[1755284607224,0.71,183.98,183.96,1e-08]
[1755284607419,35.01254703,183.99,183.96,9.39004873]
[1755284607626,3.57743097,183.98,183.96,9.39004873]
[1755284608039,5.43566885,183.97,183.96,1e-08]
[1755284608353,5.43566885,183.97,183.94,0.03]
[1755284608354,26.0,183.95,183.94,0.03]
[1755284608653,29.57743097,183.95,183.94,0.03]
[1755284608819,30.28743097,183.95,183.94,0.03]
[1755284609337,30.28743097,183.95,183.87,0.03]
[1755284609338,39.67747969,183.95,183.87,0.03]
[1755284609526,9.39004872,183.92,183.87,9.42004872]
[1755284609729,0.71,183.91,183.87,0.03]
[1755284609955,3.57743097,183.93,183.87,9.42004872]
[1755284610165,9.39004872,183.9,183.87,0.03]
[1755284610348,9.39004872,183.88,183.87,0.03]
[1755284610723,0.71,183.88,183.87,0.03]
[1755284610931,10.10004872,183.88,183.87,0.03]
[1755284611318,3.57743097,183.9,183.87,0.03]
[1755284611522,26.71,183.88,183.87,0.03]
[1755284611820,39.67747969,183.88,183.87,0.03]
[1755284612324,45.11580903,183.88,183.87,0.03]
[1755284612631,58.71163239,183.88,183.83,0.03]
[1755284612826,4.28743097,183.87,183.83,0.03]
[1755284613030,13.67747969,183.87,183.83,0.03]
[1755284613320,31.43832934,183.88,183.83,9.42004872]
[1755284613520,9.39004872,183.85,183.83,0.03]
[1755284613752,9.39004872,183.84,183.83,0.03]
[1755284613918,36.10004872,183.84,183.83,1e-08]
[1755284614121,19.09353898,183.84,183.83,1e-08]
[1755284614353,23.46204569,183.84,183.83,1e-08]
[1755284614551,19.09353898,183.84,183.83,1e-08]
[1755284615125,26.0,183.81,183.71,9.39004872]
[1755284615333,9.39004872,183.76,183.7,42.24]
[1755284615553,10.10004872,183.78,183.72,9.39004872]
[1755284615754,9.39004872,183.77,183.72,9.39004872]
[1755284615956,10.10004872,183.76,183.7,42.24]
[1755284616260,14.83252177,183.74,183.7,42.24]
[1755284616467,10.10004872,183.73,183.67,250.0]
[1755284616673,30.24673348,183.73,183.67,250.0]
[1755284616838,30.24673348,183.73,183.68,9.39004872]
[1755284616839,3.53673348,183.72,183.68,9.39004872]
[1755284617158,10.10004872,183.71,183.67,250.0]
[1755284617372,0.71,183.7,183.67,250.0]
[1755284617542,26.0,183.71,183.67,259.39004872]
[1755284617721,40.83252177,183.74,183.69,9.39004872]
[1755284617929,26.0,183.74,183.7,9.39004872]
[1755284618145,33.18755101,183.8,183.72,9.39004872]
[1755284618146,5.44183863,183.77,183.72,9.39004872]
[1755284618456,2.83847778,183.79,183.76,9.39004872]
[1755284618632,9.39004872,183.78,183.72,42.24]
[1755284618828,9.39004872,183.74,183.68,51.63004872]
[1755284619042,3.53154955,183.76,183.71,9.39004872]
[1755284619245,10.10004872,183.76,183.71,9.39004872]
[1755284619450,10.10004872,183.76,183.7,9.39004872]
[1755284619633,26.0,183.77,183.72,9.39004872]
[1755284620037,8.27906002,183.8,183.76,9.39004872]
[1755284620362,8.27906002,183.8,183.73,0.7]
[1755284620363,3.52923346,183.8,183.74,47.70218735]
[1755284620534,2.83789477,183.84,183.79,9.39004872]
[1755284620860,8.96754154,183.91,183.83,9.39004872]
[1755284621063,5.43746623,183.91,183.8,42.26]
[1755284621243,8.96754154,183.91,183.82,0.7]
[1755284621449,3.53007531,183.91,183.9,9.39004872]
[1755284621666,2.83644159,183.93,183.9,52.35004872]
[1755284621981,2.83644159,183.93,183.84,15.10621557]
[1755284621982,2.83644159,183.93,183.92,9.39004872]
[1755284622187,2.83644159,183.93,183.92,15.5271953]
[1755284622367,2.11644159,183.93,183.92,15.5271953]
[1755284622690,2.11644159,183.93,183.86,20.54513648]
[1755284622850,5.43538763,183.98,183.92,13.80118087]
[1755284623047,3.53499969,183.98,183.97,13.80118087]
[1755284623244,3.53499969,184.03,183.97,56.04118087]
[1755284623451,0.06,184.04,184.02,13.80118087]
[1755284623755,0.06,184.04,184.02,42.24]
[1755284623961,6.20362045,184.04,184.02,42.24]
[1755284624155,6.20362045,184.04,184.0,13.80118087]
[1755284624472,6.20362045,184.04,183.95,13.80118087]
[1755284624473,4.24499969,184.03,183.95,13.80118087]
[1755284624646,26.0,184.01,183.94,42.24]
[1755284624845,18.04618056,184.0,183.94,42.24]
[1755284625064,26.0,183.97,183.94,13.80118087]
[1755284625294,4.19867126,183.96,183.94,42.24]
[1755284625775,14.46118087,183.95,183.8,15.10621557]
[1755284625967,13.80118087,183.91,183.85,13.80118087]
[1755284626171,13.80118087,183.91,183.75,39.2]
[1755284626172,0.66,183.9,183.75,39.2]
[1755284626376,3.53706856,183.91,183.86,13.80118087]
[1755284626593,31.43596434,183.96,183.9,13.80118087]
[1755284626750,3.53799473,183.95,183.94,13.80118087]
[1755284627152,26.0,183.96,183.94,13.80118087]
[1755284627372,3.5392959,183.95,183.93,13.80118087]
[1755284627869,0.66,183.94,183.9,42.22]
[1755284628174,0.66,183.93,183.9,42.22]
[1755284628369,5.43714658,183.92,183.91,13.80118087]
[1755284629157,3.5392959,183.95,183.91,13.80118087]
[1755284629373,8.97581357,183.95,183.94,13.80118087]
[1755284629870,26.0,183.94,183.93,13.80118087]
[1755284630082,3.5392959,183.94,183.93,13.80118087]
[1755284630256,8.97581357,183.95,183.93,13.80118087]
[1755284630875,3.5392959,183.95,183.94,13.80118087]
[1755284631072,3.5392959,183.96,183.94,13.80118087]
[1755284631581,9.03526024,183.96,183.95,13.80118087]
[1755284632664,23.49644111,183.96,183.91,0.03]
[1755284632865,18.28058376,183.94,183.91,0.03]
[1755284633181,3.5392959,183.93,183.91,0.03]
[1755284633384,3.5392959,183.92,183.91,13.83118087]
[1755284634290,3.5392959,183.94,183.91,13.83118087]
[1755284634497,5.43714658,183.92,183.91,0.03]
[1755284634793,8.97644248,183.92,183.91,0.03]
[1755284635086,8.97644248,183.92,183.91,13.83118087]
[1755284635289,5.43714658,183.92,183.91,13.83118087]
[1755284635779,5.43714658,183.92,183.91,0.03]
[1755284635978,3.5392959,183.92,183.91,13.83118087]
[1755284636182,3.5392959,183.95,183.91,13.83118087]
[1755284636364,3.5392959,183.95,183.94,13.80118087]
[1755284636576,3.55446868,183.95,183.94,13.80118087]
[1755284636901,3.55446868,183.95,183.91,0.03]
[1755284636902,22.49505244,183.95,183.91,0.03]
[1755284637116,3.55446868,183.94,183.91,0.03]
[1755284637403,3.55446868,183.95,183.93,13.80118087]
[1755284637605,3.55446868,183.95,183.94,13.80118087]
[1755284637980,0.06,183.96,183.94,13.80118087]
[1755284638201,0.06,183.96,183.95,13.80118087]
[1755284638716,18.07564955,183.96,183.91,0.03]
[1755284639004,26.0,183.93,183.89,0.03]
[1755284639189,13.80118087,183.91,183.89,0.03]
[1755284639386,17.35564955,183.9,183.89,0.03]
[1755284639612,18.01564955,183.9,183.89,0.03]
[1755284640003,4.21446868,183.9,183.89,0.03]
[1755284640327,26.0,183.87,183.84,13.80118087]
[1755284640505,3.55446868,183.86,183.85,13.80118087]
[1755284641179,8.99251318,183.89,183.8,42.25]
[1755284641385,3.55446868,183.88,183.85,13.80118087]
[1755284641598,3.55446868,183.88,183.87,13.80118087]
[1755284641783,3.55446868,183.88,183.86,13.80118087]
[1755284641982,3.55446868,183.87,183.86,13.80118087]
[1755284642281,3.55446868,183.88,183.86,13.80118087]
[1755284642479,3.55446868,183.89,183.87,13.80118087]
[1755284642678,3.55446868,183.89,183.88,13.80118087]
[1755284643378,22.79368315,183.89,183.81,0.03]
[1755284643685,13.80118087,183.84,183.8,0.03]
[1755284644012,3.55446868,183.83,183.8,0.03]
[1755284644201,24.9355407,183.89,183.8,0.03]
[1755284644202,3.55446868,183.82,183.8,0.03]
[1755284644401,5.44040041,183.81,183.8,0.03]
[1755284644616,8.99486909,183.81,183.8,0.03]
[1755284646017,3.55446868,183.83,183.8,13.83118087]
[1755284646219,3.55446868,183.85,183.82,13.80118087]
[1755284646513,5.90242309,183.92,183.84,19.24063916]
[1755284646514,3.55446868,183.87,183.84,19.24063916]
[1755284646729,3.55446868,183.9,183.86,13.80118087]
[1755284646898,3.55446868,183.93,183.84,5.43945829]
[1755284647102,26.0,183.86,183.8,0.03]
[1755284647303,13.80118087,183.82,183.8,0.03]
[1755284647620,3.55897309,183.81,183.8,0.03]
[1755284647808,44.02015396,183.81,183.8,0.03]
[1755284648010,30.21897309,183.81,183.8,0.03]
[1755284648406,23.46055437,183.81,183.73,42.76]
[1755284648730,39.80118087,183.77,183.73,42.76]
[1755284648900,4.21897309,183.76,183.73,42.76]
[1755284649100,0.66,183.75,183.73,42.76]
[1755284649297,3.55897309,183.75,183.73,42.76]
[1755284649525,26.0,183.76,183.73,42.76]
[1755284649713,3.5563537,183.75,183.73,42.76]
[1755284650209,26.0,183.76,183.73,42.76]
[1755284650424,26.0,183.77,183.75,13.80118087]
[1755284650715,26.0,183.81,183.76,13.80118087]
[1755284650903,0.66,183.86,183.8,13.80118087]
[1755284651098,22.7975701,183.85,183.78,42.74]
[1755284651430,4.2171305,183.84,183.79,13.80118087]
[1755284651599,26.0,183.82,183.79,13.80118087]
[1755284651803,3.5571305,183.81,183.78,42.74]
[1755284652007,0.66,183.8,183.78,42.74]
[1755284652298,0.66,183.79,183.78,42.74]
[1755284652507,23.4593038,183.79,183.74,42.72]
[1755284652712,13.80118087,183.77,183.73,42.72]
[1755284652911,4.2171305,183.76,183.73,42.72]
[1755284653202,26.0,183.81,183.75,13.80118087]
[1755284653402,3.55805039,183.8,183.78,13.80118087]
[1755284653603,4.4435912,183.85,183.79,13.80118087]
[1755284653903,26.0,183.84,183.82,13.80118087]
[1755284654102,3.55871274,183.83,183.82,13.80118087]
[1755284654325,5.1635912,183.89,183.82,13.80118087]
[1755284654536,3.55950936,183.88,183.84,5.43926434]
[1755284654709,0.06,183.89,183.83,48.17973925]
[1755284654911,26.66,183.88,183.83,56.54118087]
[1755284655107,4.21950936,183.87,183.83,42.74]
[1755284655303,0.72,183.86,183.83,42.74]
[1755284655522,0.72,183.86,183.83,56.54118087]
[1755284655908,0.72,183.86,183.83,42.74]
[1755284656311,13.80118087,183.84,183.74,5.47242795]
[1755284656517,26.72,183.85,183.77,13.80118087]
[1755284656518,5.44040041,183.81,183.77,13.80118087]
[1755284656712,9.00073721,183.81,183.77,13.80118087]
[1755284656913,13.80118087,183.78,183.68,0.03]
[1755284657119,0.72,183.8,183.75,13.80118087]
[1755284657338,0.72,183.79,183.74,42.74]
[1755284657520,0.72,183.79,183.77,0.03]
[1755284658535,26.0,183.79,183.78,13.80118087]
[1755284658838,26.72,183.82,183.78,13.80118087]
[1755284659016,26.72,183.82,183.77,0.03]
[1755284659017,26.72,183.82,183.79,13.80118087]
[1755284659217,26.0,183.8,183.79,13.80118087]
[1755284659532,26.0,183.8,183.77,0.03]
[1755284659835,6.15926067,183.85,183.79,13.80118087]
[1755284660014,3.55973893,183.86,183.84,13.80118087]
[1755284660211,26.0,183.86,183.85,13.80118087]
[1755284660522,3.55973893,183.86,183.85,13.80118087]
[1755284660716,26.0,183.86,183.85,13.80118087]
[1755284660907,26.0,183.85,183.81,5.44040041]
[1755284661106,0.72,183.86,183.84,13.80118087]
[1755284661443,26.72,183.85,183.8,42.66]
[1755284661656,4.28083204,183.84,183.8,42.66]
[1755284661817,4.28083204,183.84,183.81,13.80118087]
[1755284662147,26.0,183.82,183.78,42.62]
[1755284662318,13.80118087,183.79,183.77,0.03]
[1755284662519,3.56096875,183.78,183.77,0.03]
[1755284662872,0.72,183.78,183.77,0.03]
[1755284663218,3.56096875,183.79,183.77,0.03]
[1755284663520,26.0,183.8,183.77,0.03]
[1755284663717,0.72,183.78,183.77,0.03]
[1755284664031,26.72,183.78,183.77,0.03]
[1755284664229,35.72335934,183.78,183.77,0.03]
[1755284664434,26.0,183.78,183.77,13.83118087]
[1755284664942,5.1635912,183.88,183.77,56.50118087]
[1755284665134,0.06,183.89,183.87,13.80118087]
[1755284665339,0.06,183.89,183.78,0.57412884]
[1755284665340,0.06,183.89,183.88,13.80118087]
[1755284665654,32.21816123,183.89,183.84,42.64]
[1755284665822,26.0,183.86,183.84,42.64]
[1755284666149,26.0,183.86,183.85,13.80118087]
[1755284666318,0.06,183.89,183.85,13.83118087]
[1755284666523,0.06,183.89,183.88,13.80118087]
[1755284666942,0.06,183.89,183.85,0.03]
[1755284667173,0.06,183.89,183.84,48.07949983]
[1755284667359,0.06,183.89,183.88,13.80118087]
[1755284668642,0.06,183.89,183.88,13.83118087]
[1755284668866,0.06,183.89,183.88,19.23951021]
[1755284669167,0.06,183.89,183.88,13.80118087]
[1755284669943,0.06,183.89,183.84,48.07943817]
[1755284670146,0.06,183.89,183.88,13.80118087]
[1755284670346,0.06,183.89,183.88,19.23951021]
[1755284670780,0.06,183.89,183.88,13.80118087]
[1755284670983,0.06,183.89,183.88,19.23951021]
[1755284671170,0.06,183.89,183.84,56.26878154]
[1755284671171,0.06,183.89,183.87,5.43854666]
[1755284671477,0.06,183.89,183.88,13.80118087]
[1755284672251,0.06,183.89,183.88,19.23951021]
[1755284672871,0.06,183.89,183.88,34.37572578]
[1755284673192,0.06,183.93,183.89,15.10621557]
[1755284673355,0.06,183.93,183.9,42.53]
[1755284674171,0.06,183.93,183.92,13.80118087]
[1755284674552,0.06,183.93,183.92,19.23832745]
[1755284674750,0.06,183.93,183.9,47.9374859]
[1755284674956,0.06,183.93,183.92,13.80118087]
[1755284676770,0.06,183.95,183.93,15.10621557]
[1755284676974,0.06,183.96,183.95,15.10621557]
[1755284677287,0.06,183.98,183.95,28.90739644]
[1755284677463,0.06,184.0,183.97,28.90739644]
[1755284677660,0.06,184.0,183.99,13.80118087]
[1755284678175,0.06,184.02,184.0,15.10621557]
[1755284678381,0.06,184.02,184.01,13.80118087]
[1755284678684,0.06,184.02,184.01,19.23566812]
[1755284680171,0.06,184.02,184.01,13.80118087]
[1755284680378,0.78,184.02,184.0,13.80118087]
[1755284680679,0.78,184.02,184.01,13.80118087]
[1755284680879,0.06,184.02,184.0,42.34]
[1755284681083,0.72,184.01,184.0,56.14118087]
[1755284681758,0.06,184.02,184.0,56.14118087]
[1755284681962,5.49419193,184.02,184.0,56.14118087]
[1755284682281,5.49419193,184.02,184.0,42.34]
[1755284682489,0.72,184.01,184.0,42.34]
[1755284683968,6.15448725,184.01,184.0,42.34]
[1755284684591,0.06,184.02,184.0,56.14118087]
[1755284684759,0.06,184.02,184.01,13.80118087]
[1755284684964,0.78,184.02,184.0,42.34]
[1755284685181,0.72,184.01,184.0,56.14118087]
[1755284685687,0.72,184.01,184.0,42.34]
[1755284686966,6.15448725,184.01,184.0,42.34]
[1755284687169,0.72,184.01,184.0,42.34]
[1755284687487,6.15448725,184.01,184.0,42.34]
[1755284688094,6.15448725,184.01,184.0,56.14118087]
[1755284688095,0.72,184.01,184.0,56.14118087]
[1755284688393,0.06,184.02,184.0,56.14118087]
[1755284688570,0.06,184.02,184.01,56.04118087]
[1755284689288,0.75,184.02,184.01,56.04118087]
[1755284689468,0.06,184.02,184.01,56.04118087]
[1755284690189,0.75,184.02,184.01,42.24]
[1755284691178,32.18419193,184.02,184.01,42.24]
[1755284691584,0.06,184.02,184.01,56.04118087]
[1755284692492,0.75,184.02,184.01,42.24]
[1755284692793,6.18419193,184.02,184.01,42.24]
[1755284694399,26.0,183.99,183.88,0.06]
[1755284694690,13.80118087,183.96,183.88,15.13621557]
[1755284694881,13.80118087,183.94,183.89,13.80118087]
[1755284695082,0.69,183.93,183.92,42.22]
[1755284695388,14.49118087,183.93,183.92,42.22]
[1755284695589,0.69,183.93,183.92,42.22]
[1755284696473,6.12685097,183.93,183.92,42.22]
[1755284698111,19.92803184,183.93,183.92,42.22]
[1755284698408,23.48098357,183.93,183.92,42.22]
[1755284699696,23.48098357,183.93,183.92,42.25]
[1755284700305,16.343875,183.99,183.92,61.48832206]
[1755284700306,5.43507799,183.99,183.92,61.48832206]
[1755284700614,26.0,183.96,183.92,0.03]
[1755284700795,26.0,183.96,183.93,56.02118087]
[1755284701111,26.0,183.96,183.95,13.80118087]
[1755284701629,0.69,184.0,183.95,13.80118087]
[1755284701783,0.69,184.0,183.98,13.80118087]
[1755284702102,0.06,184.01,183.98,13.80118087]
[1755284702103,0.06,184.01,183.99,42.24]
[1755284702403,26.0,184.0,183.99,42.24]
[1755284702588,0.75,184.01,183.99,42.24]
[1755284702789,0.06,184.01,183.99,56.04118087]
[1755284702994,0.06,184.01,184.0,13.80118087]
[1755284703190,0.75,184.01,183.99,42.24]
[1755284703392,40.49118087,184.0,183.92,79.23]
[1755284703599,3.55560127,183.99,183.96,13.80118087]
[1755284703829,26.0,184.0,183.98,13.80118087]
[1755284704115,26.0,184.0,183.99,56.02118087]
[1755284704303,0.06,184.01,183.99,56.02118087]
[1755284704495,0.06,184.01,183.99,42.22]
[1755284704808,0.06,184.01,184.0,13.80118087]
[1755284706394,0.75,184.01,183.92,79.23]
[1755284706592,26.0,183.99,183.95,13.80118087]
[1755284706799,4.24906777,183.98,183.96,42.22]
[1755284707404,0.69,183.97,183.93,13.80118087]
[1755284707615,3.55906777,183.96,183.94,42.22]
[1755284708310,4.24906777,183.95,183.94,42.22]
[1755284708487,9.68532762,183.95,183.94,42.22]
[1755284709687,23.48650849,183.95,183.94,42.22]
[1755284709994,3.55906777,183.95,183.94,56.02118087]
[1755284710391,3.55906777,183.97,183.94,56.02118087]
[1755284710603,3.55906777,183.96,183.94,42.22]
[1755284710799,26.0,183.96,183.95,13.80118087]
[1755284711000,29.57533857,183.96,183.95,13.80118087]
[1755284711390,3.57533857,183.96,183.95,13.80118087]
[1755284711837,3.57533857,183.98,183.95,13.83118087]
[1755284712005,3.57725941,183.97,183.96,42.22]
[1755284712203,3.57725941,184.0,183.96,56.02118087]
[1755284712411,3.5780483,183.99,183.98,13.80118087]
[1755284712604,3.5780483,183.99,183.98,56.02118087]
[1755284713297,3.5780483,184.0,183.98,56.05118087]
[1755284713624,0.06,184.01,183.99,13.80118087]
[1755284713919,0.06,184.01,184.0,56.02118087]
[1755284714125,3.63976999,184.01,184.0,56.02118087]
[1755284714626,3.63976999,184.01,184.0,61.45596347]
[1755284714828,3.63976999,184.01,184.0,56.02118087]
[1755284715015,3.63976999,184.01,184.0,42.22]
[1755284715327,3.63976999,184.01,184.0,56.02118087]
[1755284715621,9.78425724,184.01,183.99,13.80118087]
[1755284715798,6.20448725,184.01,184.0,42.2]
[1755284715999,3.64058946,184.01,184.0,56.00118087]
[1755284720197,3.64058946,184.01,184.0,42.2]
[1755284720398,9.78507671,184.01,184.0,56.00118087]
[1755284720708,9.78507671,184.01,184.0,42.2]
[1755284720908,41.61140072,184.01,183.94,13.83118087]
[1755284721131,39.80118087,183.98,183.94,0.03]
[1755284721295,3.58058946,183.97,183.95,42.2]
[1755284721611,3.58058946,183.96,183.95,42.2]
[1755284722819,3.58058946,183.96,183.95,56.00118087]
[1755284723230,3.58058946,183.97,183.95,61.43744072]
[1755284723542,3.58270111,184.0,183.96,14.3747773]
[1755284723706,3.64270111,184.01,183.99,13.80118087]
[1755284723909,3.64270111,184.01,184.0,55.98118087]
[1755284724608,0.06,184.01,184.0,55.98118087]
[1755284724812,0.06,184.01,184.0,61.41596347]
[1755284725004,0.06,184.01,184.0,61.44596347]
[1755284725315,0.06,184.01,184.0,77.0956573]
[1755284727039,0.06,184.03,184.01,15.10621557]
[1755284727214,0.06,184.05,184.02,71.63081563]
[1755284727539,0.06,184.05,184.04,13.80118087]
[1755284727709,0.06,184.05,184.04,56.524541]
[1755284728338,0.06,184.05,184.04,71.66075657]
[1755284728832,0.06,184.05,184.04,77.09435796]
[1755284729330,0.06,184.07,184.05,15.10621557]
[1755284729527,0.06,184.07,184.05,13.80118087]
[1755284729930,0.77,184.06,184.05,55.96118087]
[1755284730321,0.06,184.06,184.05,13.80118087]
[1755284730524,0.06,184.06,184.05,55.96118087]
[1755284730724,0.77,184.06,184.05,55.96118087]
[1755284731036,0.06,184.06,184.05,55.96118087]
[1755284732151,0.06,184.06,184.05,61.39448703]
[1755284732732,0.06,184.06,184.05,61.42448703]
[1755284732933,0.06,184.06,184.05,61.39448703]
[1755284733337,0.77,184.06,184.05,55.94118087]
[1755284733931,0.77,184.06,184.0,5.4647826]
[1755284734131,0.77,184.06,184.03,13.80118087]
[1755284734337,40.57118087,184.06,184.0,13.83118087]
[1755284734518,13.80118087,184.03,184.0,0.03]
[1755284734718,13.80118087,184.03,184.01,42.14]
[1755284734937,6.14419193,184.02,184.01,42.14]
[1755284735712,23.51863984,184.02,184.01,42.14]
[1755284736445,6.14419193,184.02,184.01,42.14]
[1755284736744,9.71770943,184.02,184.01,42.14]
[1755284736944,23.5188903,184.02,184.01,42.14]
[1755284737524,9.71770943,184.02,184.01,42.14]
[1755284737825,9.71789992,184.02,184.01,42.14]
[1755284738148,0.71,184.02,184.01,42.14]
[1755284740248,26.0,184.04,184.01,55.94118087]
[1755284740426,26.71,184.04,184.02,13.80118087]
[1755284740628,26.71,184.04,184.01,42.14]
[1755284740629,26.0,184.04,184.03,42.14]
[1755284740841,43.37442557,184.04,184.0,0.03]
[1755284741133,26.0,184.0,183.96,0.03]
[1755284741339,13.80118087,183.99,183.97,42.12]
[1755284741541,0.71,183.98,183.97,42.12]
[1755284741719,39.80118087,184.0,183.97,42.12]
[1755284741921,4.28282716,183.99,183.97,42.12]
[1755284742645,0.71,183.98,183.97,42.12]
[1755284743029,6.14537341,183.98,183.97,42.12]
[1755284743242,0.71,183.98,183.97,42.12]
[1755284743755,3.57282716,183.99,183.97,42.12]
[1755284743930,4.28282716,183.99,183.97,42.12]
[1755284744552,26.0,184.01,183.98,13.80118087]
[1755284744725,26.0,184.01,183.97,42.12]
[1755284744726,31.43397091,184.03,183.99,42.12]
[1755284744929,5.49306326,184.06,184.01,13.80118087]
[1755284745127,4.28716934,184.05,184.02,42.12]
[1755284745333,13.80118087,184.03,184.02,42.12]
[1755284745536,30.29716934,184.03,184.02,42.12]
[1755284746055,30.29716934,184.03,183.96,0.03]
[1755284746056,48.53727521,184.03,183.96,0.03]
[1755284746234,13.80118087,183.97,183.94,0.03]
[1755284746432,39.80118087,183.95,183.94,0.03]
[1755284746627,43.37835021,183.95,183.94,0.03]
[1755284746953,49.53461006,183.95,183.94,0.03]
[1755284748632,35.73342919,183.95,183.94,0.03]
[1755284748937,26.0,183.95,183.94,0.03]
[1755284749156,5.43625985,183.95,183.94,0.03]